Cogmind - Beta 12 @@@ ROGUE MODE // 2023.04.01 @ 14:26:13 Player: Inkie Result: Destroyed by Y-45 Defender with Beam Rifle Performance ------------- Evolutions (2) 1000 Regions Visited (12) 2400 Robots Destroyed (180) 900 Value Destroyed (6677) 6677 Prototype IDs (32) 640 Alien Tech Used (0) 0 Bonus (1515) 1515 TOTAL SCORE: 13132 Bonus ------- High Alert Combat Kills 815 Entered Garrisons 400 Aligned with FarCom 300 Cogmind --------- Core Integrity 0/550 Matter 131/300 Energy 280/280 System Corruption 0% Temperature Cool (9) Movement Rolling (175) Ox5 Location -8/Storage Parts ------- > --- POWER (1) -------- Cooled Ion Engine > --- PROPULSION (2) --- Compact Wheel > --- UTILITY (6) ------ Improved Coolant Injector Huge Storage Unit Advanced Targeting Computer Hacking Suite Hacking Suite Advanced System Shield > --- WEAPON (2) ------- Great Maul > --- INVENTORY (25) --- Cooled Ion Engine Cooled Ion Engine Improved Terrain Scan Processor Improved Targeting Computer Improved Transmission Jammer Heavy Armor Plating Authchip [R/Combat] Authchip [R/Combat] Authchip [R/Combat] Authchip [R/Combat] Authchip [R/Combat] Authchip [R/Combat] Authchip [R/Combat] Authchip [R/Combat] Authchip [R/Combat] Authchip [R/Combat] Trap Extractor (0/4) Trap Reconfigurator Advanced Beam Cannon Enhanced Autogun Enhanced Autogun Enhanced Autogun Heavy Rocket Launcher Plasma Cutter Peak State ------------ > --- POWER ------------ Micro Fission Core > --- PROPULSION ------- Improved Treads Compact Wheel > --- UTILITY ---------- Improved Coolant Injector Huge Storage Unit Hacking Suite Hacking Suite Advanced System Shield Trap Reconfigurator > --- WEAPON ----------- Enhanced Autogun Enhanced Autogun > --- INVENTORY -------- Compact Wheel Improved Targeting Computer Improved Transmission Jammer Improved Utility Shielding Heavy Armor Plating Authchip [R/Combat] Authchip [R/Combat] Authchip [R/Combat] Authchip [R/Combat] Authchip [R/Combat] Authchip [R/Combat] Authchip [R/Combat] Authchip [R/Combat] Authchip [R/Combat] Authchip [R/Combat] Tesla Rifle Enhanced Autogun Enhanced Autogun Heavy Rocket Launcher Plasma Cutter Great Maul [Rating: 53] Favorites ----------- Power Cooled Ion Engine Engine Cooled Ion Engine Power Core Micro Fission Core Propulsion Improved Treads Treads Improved Treads Leg Carbon-fiber Leg Wheel Compact Wheel Utility Huge Storage Unit Device Improved Heat Sink Storage Huge Storage Unit Processor Terrain Scan Processor Hackware Hacking Suite Protection Reflective Plating Weapon Heavy EM Shotgun Energy Gun Heavy EM Shotgun Energy Cannon Heavy Particle Cannon Ballistic Gun Enhanced Autogun Ballistic Cannon Improved Light Cannon Launcher Heavy Rocket Launcher Impact Weapon Great Maul Build | -11 -10 -10 -9 -9 -9 -8 -8 -8 -8 -8 -8 -8 ------- Run | Jun Mat Min Mat Min Exi Min Mat Gar Mat Gar Mat Sto Slots Evolved 4 | . . . 2 . . . 2 . . . . . Power . | . . . . . . . . . . . . . Propulsion . | . . . . . . . . . . . . . Utility 4 | . . . 2 . . . 2 . . . . . Weapon . | . . . . . . . . . . . . . Parts Attached 153 | 6 12 1 18 10 7 2 10 10 20 24 25 8 Power 8 | 1 . 1 2 . . . . 1 . 2 . 1 Engine 7 | 1 . 1 2 . . . . 1 . 1 . 1 Core 1 | . . . . . . . . . . 1 . . Reactor . | . . . . . . . . . . . . . Propulsion 29 | 2 3 . 4 2 4 . 3 1 3 1 3 3 Treads 20 | 2 3 . 4 . 2 . 2 1 3 1 2 . Leg 1 | . . . . . . . . . . . . 1 Wheel 8 | . . . . 2 2 . 1 . . . 1 2 Hover . | . . . . . . . . . . . . . Flight . | . . . . . . . . . . . . . Utility 57 | 1 5 . 7 3 2 . 6 1 11 7 13 1 Device 28 | . 2 . 2 1 . . 4 . 7 6 6 . Storage 7 | 1 2 . 1 1 . . 1 . . . 1 . Processor 2 | . . . . . . . 1 . . . . 1 Hackware 3 | . . . . . . . . . . 1 2 . Protection 17 | . 1 . 4 1 2 . . 1 4 . 4 . Artifact . | . . . . . . . . . . . . . Weapon 59 | 2 4 . 5 5 1 2 1 7 6 14 9 3 Energy Gun 16 | 2 1 . . . 1 . 1 3 3 4 . 1 Energy Cannon 12 | . . . 2 2 . 2 . . 2 4 . . Ballistic Gun 6 | . . . . . . . . . . . 6 . Ballistic Cannon 8 | . 3 . 3 2 . . . . . . . . Launcher 12 | . . . . 1 . . . 2 . 5 3 1 Special Weapon . | . . . . . . . . . . . . . Impact Weapon 5 | . . . . . . . . 2 1 1 . 1 Slashing Weapon . | . . . . . . . . . . . . . Piercing Weapon . | . . . . . . . . . . . . . Special Melee Weapon . | . . . . . . . . . . . . . Unidentified Prototypes 6 | . . . 3 . 1 . 1 . . . 1 . Parts Lost 24 | . . . 3 5 . . 2 . 1 1 8 4 Power 2 | . . . 1 . . . . . . . 1 . Propulsion 7 | . . . . . . . 1 . . . 4 2 Utility 9 | . . . 1 3 . . 1 . 1 1 2 . Weapon 6 | . . . 1 2 . . . . . . 1 2 Highest Loss Streak 3 | . . . 2 3 . . 1 . 1 1 3 2 To Critical Strikes . | . . . . . . . . . . . . . Average Slot Usage (%) 94 | . 98 100 98 94 77 90 94 100 92 98 95 82 Engine 7 | . 14 14 10 11 11 11 9 9 9 4 . 3 Core 1 | . . . . . . . . . . 4 8 . Treads 15 | . 28 28 22 13 . . 6 18 18 18 14 1 Wheel 3 | . . . . 8 21 22 11 . . . 1 3 Device 12 | . 5 14 11 9 11 11 15 9 14 12 15 9 Storage 9 | . 14 14 11 11 11 11 9 9 9 9 9 9 Processor 4 | . . . . . . . 6 9 9 9 . . Hackware 5 | . . . . . . . . . . 8 19 27 Protection 14 | . 6 . 20 18 21 22 18 26 14 13 9 5 Energy Gun 4 | . 12 . . . . . 1 16 10 3 . 7 Energy Cannon 5 | . . . . 5 . 12 16 . 7 8 6 . Ballistic Gun 2 | . . . . . . . . . . . 11 4 Ballistic Cannon 4 | . 15 28 21 11 . . . . . . . . Launcher 1 | . . . . 5 . . . . . 4 . . Naked Turns . | . . . . . . . . . . . . . Heaviest Build 119 | 14 54 56 107 111 100 105 106 108 119 111 107 100 Greatest Support 46 | 40 43 43 43 43 46 26 43 46 46 43 46 32 Greatest Overweight (x) 30 | . 1 1 2 10 3 4 6 2 2 2 6 30 Average Overweight (x) 2 | . . 1 1 3 2 3 3 2 2 2 2 5 Largest Inventory Capacity 25 | 8 20 20 25 25 25 25 25 25 25 25 25 25 Average Capacity 24 | 7 11 20 24 25 25 25 25 25 25 25 25 25 Most Carried 25 | 1 11 13 25 25 25 25 25 25 25 25 25 25 Average Carried 22 | . 8 12 19 23 24 23 23 24 24 24 24 23 Final Capacity 25 | 8 20 20 25 25 25 25 25 25 25 25 25 25 Final Carried 25 | 1 11 13 25 25 25 23 25 25 25 25 22 25 Class Distribution -------------------- 61% | Mutant 14% | Hacker-Mutant 13% | Skirmisher 6% | Hacker-Skirmisher Dominant Class ---------------- Mutant | -10/Materials Mutant | -10/Mines Mutant | -9/Materials Mutant | -9/Mines Mutant | -9/Exiles Mutant | -8/Mines Skirmisher | -8/Materials Mutant | -8/Garrison Skirmisher | -8/Materials Mutant | -8/Garrison Hacker-Mutant | -8/Materials Hacker-Mutant | -8/Storage Resources | -11 -10 -10 -9 -9 -9 -8 -8 -8 -8 -8 -8 -8 ----------- Run | Jun Mat Min Mat Min Exi Min Mat Gar Mat Gar Mat Sto Matter Collected 3812 | 196 265 48 830 422 . 25 161 70 272 311 1067 145 Remotely . | . . . . . . . . . . . . . Salvage Created 5712 | . 367 33 1072 76 . 25 341 321 1330 540 1392 215 Parts 330 | . 18 8 45 6 . 3 13 27 80 29 86 15 Haulers Intercepted 7 | . . . 2 . . . 2 . 2 . 1 . Recyclers Shooed 12 | . . . 1 . . . 2 . 1 . 3 5 Parts Field Recycled . | . . . . . . . . . . . . . Retrieved Matter . | . . . . . . . . . . . . . Parts Self-Destructed . | . . . . . . . . . . . . . Prevented . | . . . . . . . . . . . . . Kills | -11 -10 -10 -9 -9 -9 -8 -8 -8 -8 -8 -8 -8 ------- Run | Jun Mat Min Mat Min Exi Min Mat Gar Mat Gar Mat Sto Combat Hostiles Destroyed 152 | . 13 6 18 20 . . 3 8 20 21 35 8 Melee 1 | . . . . . . . . . . . . 1 Guns 42 | . 1 . . . . . . 3 13 3 19 3 Cannons 55 | . 12 6 18 5 . . 3 . 5 1 5 . AOE 52 | . . . . 15 . . . 4 2 17 11 3 Classes Destroyed 18 | . 4 . 5 3 . . . 2 2 . 2 . Worker 8 | . 1 . . 2 . . . . 2 . 3 . Builder 7 | . . . . 1 . 2 1 . 1 . . 2 Tunneler 1 | . . . . . . . . . 1 . . . Hauler 7 | . . . 2 . . . 2 . 2 . 1 . Recycler 11 | . . . 6 . . . 1 . 2 . 1 1 Mechanic 1 | . . . 1 . . . . . . . . . Operator 5 | . 3 . 1 . . . . . 1 . . . Watcher 3 | . . . . . . . . 1 1 . 1 . Swarmer 41 | . 2 6 2 2 . . . 3 6 8 5 7 Grunt 60 | . 11 . 9 . . . 1 2 7 12 18 . Brawler 1 | . . . . . . . . . 1 . . . Duelist 5 | . . . 2 . . . . . . . 3 . Protector 2 | . . . . . . . . . . . 2 . Sentry 23 | . . . 5 . . . 2 2 6 1 6 1 Demolisher 2 | . . . . 2 . . . . . . . . Specialist 1 | . . . . . . . . 1 . . . . Hunter 1 | . . . . . . . . . . . 1 . Assembled 15 | . . . . 15 . . . . . . . . Best Kill Streak 9 | . 8 3 7 6 . 1 3 4 5 9 8 4 Combat Bots Only 9 | . 7 3 7 5 . . 1 4 4 9 7 3 Max Kills in Single Turn 4 | . 2 1 2 2 . 1 1 2 1 3 4 2 Gunslinging . | . . . . . . . . . . . . . Exploded 3 | . . . . 2 . . . 2 1 3 3 2 Melee 1 | . . . . . . . . . . . . 1 Uniques/NPCs Destroyed 1 | . . . . 1 . . . . . . . . YI-UF0 (-9/Mines) Combat | -11 -10 -10 -9 -9 -9 -8 -8 -8 -8 -8 -8 -8 -------- Run | Jun Mat Min Mat Min Exi Min Mat Gar Mat Gar Mat Sto Damage Taken 6575 | . 387 155 743 971 . . 284 400 643 533 1920 539 Core 874 | . 72 16 93 141 . . 12 26 14 71 273 156 Absorbed by Shields 153 | . . . . . . . . . . 17 136 . Redirected to Shielding 79 | . . . . . . . . . . . 76 3 Regen/Repaired (Parts) 256 | . . . . . . . . . 256 . . . Core Remaining (%) 68 | 100 . 64 . . . 41 . . . . . . Volleys Fired 430 | . 46 15 59 36 . 5 15 23 58 35 122 16 Largest 2 | . 2 2 2 2 . 2 2 2 2 2 2 1 Hottest 150 | . 100 78 136 136 . 136 136 100 150 150 150 65 Shots Fired 778 | . 87 30 118 47 . 11 29 43 117 52 228 16 Gun 349 | . 27 . . . . . . 40 76 15 176 15 Cannon 369 | . 60 30 118 24 . 11 29 . 41 18 38 . Launcher 60 | . . . . 23 . . . 3 . 19 14 1 Special . | . . . . . . . . . . . . . Kinetic 390 | . 60 30 107 16 . . . . . . 176 1 Thermal 183 | . 27 . 11 8 . 11 29 . 41 18 38 . Explosive 60 | . . . . 23 . . . 3 . 19 14 1 Electromagnetic 145 | . . . . . . . . 40 76 15 . 14 Robot Hit Streak 28 | . 8 3 9 6 . 6 20 20 28 9 14 3 Robot Miss Streak 7 | . 3 4 5 7 . 2 2 1 4 1 3 3 Penetration Max . | . . . . . . . . . . . . . Secondary Targets 4 | . . . . . . . . . 1 1 2 . Max Gunslinging Chain 1 | . . . . . . . . . 1 1 1 . Shots Hit Robots 458 | . 48 12 69 26 . 6 21 14 85 15 142 20 Core Hits 295 | . 21 5 32 46 . 2 7 14 51 29 79 9 Critical Kills 1 | . . . . . . . . . . . . 1 Critical Parts Destroyed 5 | . . . . . . . . . . . 2 3 Critical Strikes 10 | . 2 . 2 . . . . . . . 2 4 Burn 2 | . 2 . . . . . . . . . . . Destroy 2 | . . . . . . . . . . . 2 . Blast 2 | . . . 2 . . . . . . . . . Smash 4 | . . . . . . . . . . . . 4 Melee Attacks 27 | . . . . . . . . 2 1 6 . 18 Impact 27 | . . . . . . . . 2 1 6 . 18 Slashing . | . . . . . . . . . . . . . Piercing . | . . . . . . . . . . . . . Sneak Attacks 5 | . . . . . . . . 1 . . . 4 Combat Hostiles . | . . . . . . . . . . . . . Follow-up Attacks . | . . . . . . . . . . . . . Damage Inflicted 14957 | . 932 273 1567 1092 . 122 472 723 2377 1811 4481 1107 Guns 4304 | . 163 . . . . . . 362 1265 263 2041 210 Cannons 4806 | . 769 273 1567 245 . 122 472 . 683 25 650 . Explosions 5090 | . . . . 840 . . . 303 412 1523 1782 230 Melee 721 | . . . . . . . . 58 . . . 663 Ramming 36 | . . . . 7 . . . . 17 . 8 4 Kinetic 4650 | . 769 273 1423 144 . . . . . . 2041 . Thermal 3079 | . 163 . 144 101 . 122 472 114 1044 196 650 73 Explosive 4320 | . . . . 840 . . . 189 . 1352 1782 157 Electromagnetic 2151 | . . . . . . . . 362 1316 263 . 210 Impact 721 | . . . . . . . . 58 . . . 663 Slashing . | . . . . . . . . . . . . . Piercing . | . . . . . . . . . . . . . Highest Corruption 1 | . 1 1 1 1 1 1 . . 1 1 1 . Average Corruption 1 | . 1 1 1 1 1 1 . . 1 1 1 . Corruption Purged 1 | . . . . . . . . . . . 1 . Corruption Blocked . | . . . . . . . . . . . . . Effects 61 | . 3 3 5 7 4 4 . . 10 14 11 . Message Errors 14 | . 1 . 3 1 2 . . . 3 3 1 . Matter Fused 11 | . 1 1 . . . 2 . . 2 3 2 . Heat Flow Errors 6 | . . 1 . 2 . . . . . 2 1 . Energy Discharges 10 | . 1 . 1 1 . . . . . 3 4 . Parts Fused 1 | . . . . . . . . . . . 1 . Data Loss (minor) 10 | . . . 1 1 1 . . . 3 2 2 . Data Loss (major) 2 | . . . . . . 1 . . 1 . . . Misfires 2 | . . . . . . 1 . . 1 . . . Alerts 5 | . . 1 . 2 1 . . . . 1 . . Overload Shots . | . . . . . . . . . . . . . Overflow Damage 508 | . 10 19 36 8 . . 11 . 15 53 36 320 Projectiles 97 | . 10 19 36 2 . . 11 . 11 . . 8 Explosions 125 | . . . . 6 . . . . 4 53 36 26 Melee 286 | . . . . . . . . . . . . 286 Knockbacks 31 | . 11 5 9 4 . . . . . . . 2 Impact 1 | . . . . . . . . . . . . 1 Kinetic 26 | . 10 4 8 4 . . . . . . . . Secondary 4 | . 1 1 1 . . . . . . . . 1 Self-Inflicted Damage 431 | . . . . 90 . . . 29 85 117 70 40 Shots 15 | . . . . 4 . . . 1 2 3 4 1 Rammed 6 | . . . . 2 . . . . 1 . 2 1 Targets Rammed 6 | . . . . 2 . . . . 1 . 2 1 Kicked . | . . . . . . . . . . . . . Crushed . | . . . . . . . . . . . . . Highest Temperature 318 | . 318 118 240 251 . 96 243 162 186 198 198 84 Average Temperature 67 | . 106 60 41 74 . 35 71 99 45 48 71 26 Received Heat Transfer 2241 | . 171 . 237 80 . . 171 171 243 216 889 63 Effects 5 | . 3 . . . . . 2 . . . . . Interference 5 | . 3 . . . . . 2 . . . . . Siege Activations . | . . . . . . . . . . . . . Robots Corrupted 2 | . . . . . . . . 1 . . . 1 Combat Hostiles 1 | . . . . . . . . 1 . . . . Parts Fried 17 | . . . . . . . . 3 7 1 . 6 Impact Corruptions 12 | . . . . . . . . . . . . 12 Robots Melted . | . . . . . . . . . . . . . Combat Hostiles . | . . . . . . . . . . . . . Parts Melted 8 | . . . . 1 . . 4 . 2 . 1 . Heat Transferred 5067 | . 629 . 259 185 . 222 851 123 1499 187 962 150 Parts Sabotaged . | . . . . . . . . . . . . . Parts Stolen . | . . . . . . . . . . . . . Parts Stripped . | . . . . . . . . . . . . . Power Chain Reactions 11 | . . . . . . . . 2 6 2 . 1 Missiles Intercepted . | . . . . . . . . . . . . . Alert | -11 -10 -10 -9 -9 -9 -8 -8 -8 -8 -8 -8 -8 ------- Run | Jun Mat Min Mat Min Exi Min Mat Gar Mat Gar Mat Sto Peak Influence 1380 | . 287 314 348 269 . 5 79 568 501 1380 893 456 Initial 672 | . . 111 44 115 . . 1 1 276 224 672 356 Average 357 | . 136 169 174 106 . 2 33 209 346 775 660 355 Maximum Alert Level 4 | . 1 1 1 1 . . . 2 2 4 3 2 Low Security (%) 33 | 100 59 87 55 90 . 100 100 59 2 . . . Level 1 31 | . 40 12 44 9 . . . 39 65 23 . 63 Level 2 22 | . . . . . . . . . 32 14 73 36 Level 3 8 | . . . . . . . . . . 30 26 . Level 4 4 | . . . . . . . . . . 31 . . Level 5 . | . . . . . . . . . . . . . High Security . | . . . . . . . . . . . . . Max Security . | . . . . . . . . . . . . . Squads Dispatched 17 | . 6 . . . . . 1 . 5 . 5 . Investigation 7 | . 2 . . . . . 1 . 3 . 1 . Extermination . | . . . . . . . . . . . . . Reinforcement 8 | . 4 . . . . . . . 2 . 2 . Assault 2 | . . . . . . . . . . . 2 . Garrison . | . . . . . . . . . . . . . Intercept . | . . . . . . . . . . . . . Searches Triggered . | . . . . . . . . . . . . . Construction Impeded 2 | . . . . . . . . . . . 2 . Haulers Reinforced . | . . . . . . . . . . . . . Active Scanning Responses . | . . . . . . . . . . . . . Cargo Convoy Interrupts . | . . . . . . . . . . . . . Stealth | -11 -10 -10 -9 -9 -9 -8 -8 -8 -8 -8 -8 -8 --------- Run | Jun Mat Min Mat Min Exi Min Mat Gar Mat Gar Mat Sto Distress Signals 14 | . . . 4 . . . . . 6 . 4 . Communications Jammed . | . . . . . . . . . . . . . Distress Signals . | . . . . . . . . . . . . . Times Spotted 238 | . 21 10 41 25 . . 10 7 38 18 57 11 Peak Tracking Total 8 | . 5 3 7 6 . . 4 5 5 5 8 4 Tactical Retreats 14 | . . 2 2 3 . . . . 4 . 3 . Traps | -11 -10 -10 -9 -9 -9 -8 -8 -8 -8 -8 -8 -8 ------- Run | Jun Mat Min Mat Min Exi Min Mat Gar Mat Gar Mat Sto Traps Triggered 14 | . 1 . 1 . . . 1 8 1 1 1 . Indirectly . | . . . . . . . . . . . . . Trap Hack Attempts . | . . . . . . . . . . . . . Triggered . | . . . . . . . . . . . . . Disarmed . | . . . . . . . . . . . . . Reprogrammed . | . . . . . . . . . . . . . Reused 4 | . . . . . . . . . 1 . 3 . Traps Reconfigurated 24 | . . . . . . . 1 . 3 10 10 . Traps Extracted . | . . . . . . . . . . . . . Installed . | . . . . . . . . . . . . . Triggered 4 | . . . . . . . . . 1 . 3 . Machines | -11 -10 -10 -9 -9 -9 -8 -8 -8 -8 -8 -8 -8 ---------- Run | Jun Mat Min Mat Min Exi Min Mat Gar Mat Gar Mat Sto Machines Disabled 28 | . 2 . 5 1 . . . 5 2 8 2 3 Max in Single Turn 2 | . 1 . 2 1 . . . 2 2 1 1 1 Garrison Relay 7 | . . . . . . . . 2 . 5 . . Phase Generator 1 | . . . . . . . . 1 . . . . Machines Repaired . | . . . . . . . . . . . . . Machines Sabotaged . | . . . . . . . . . . . . . Overloaded Fab Kills . | . . . . . . . . . . . . . Hacking | -11 -10 -10 -9 -9 -9 -8 -8 -8 -8 -8 -8 -8 --------- Run | Jun Mat Min Mat Min Exi Min Mat Gar Mat Gar Mat Sto Machines Accessed 39 | . 5 . 5 . 2 . 4 1 9 4 8 1 Terminals 29 | . 4 . 4 . . . 3 1 6 4 7 . Fabricators . | . . . . . . . . . . . . . Repair Stations 2 | . . . 1 . . . . . 1 . . . Recycling Units 2 | . 1 . . . . . . . . . . 1 Scanalyzers 2 | . . . . . . . . . 1 . 1 . Garrison Access 2 | . . . . . . . 1 . 1 . . . Total Hacks 104 | . 11 . 16 . 2 . 14 3 22 9 25 2 Successful 44 | . 3 . 4 . 2 . 7 1 9 3 13 2 Failed 60 | . 8 . 12 . . . 7 2 13 6 12 . Catastrophic 14 | . 3 . 2 . . . 1 1 3 1 3 . Database Lockouts . | . . . . . . . . . . . . . Manual 70 | . 10 . 14 . 1 . 8 2 13 6 16 . Terminals 82 | . 10 . 14 . . . 11 3 14 9 21 . Fabricators . | . . . . . . . . . . . . . Repair Stations 5 | . . . 2 . . . . . 3 . . . Recycling Units 3 | . 1 . . . . . . . . . . 2 Scanalyzers 6 | . . . . . . . . . 2 . 4 . Garrison Access 6 | . . . . . . . 3 . 3 . . . Terminal Hacks 23 | . 2 . 2 . 2 . 5 . 4 2 6 . Record 1 | . . . . . 1 . . . . . . . Part Schematic 1 | . . . . . . . . . . . 1 . Robot Schematic 3 | . . . . . . . 1 . . . 2 . Robot Analysis 2 | . 1 . 1 . . . . . . . . . Prototype ID Bank 2 | . . . . . . . 2 . . . . . Branch Access Points 4 | . 1 . 1 . . . . . 1 . 1 . Alert Level 2 | . . . . . . . 1 . 1 . . . Unreport Threat 3 | . . . . . . . . . 1 . 2 . Locate Traps 1 | . . . . . . . . . 1 . . . Recall Investigation 1 | . . . . . . . 1 . . . . . Garrison Registry 1 | . . . . . . . . . . 1 . . Patrol Navigation 1 | . . . . . . . . . . 1 . . EX-Prototype ID Bank 1 | . . . . . 1 . . . . . . . Fabricator Hacks . | . . . . . . . . . . . . . Repair Station Hacks 3 | . . . 1 . . . . . 2 . . . Scan Component 2 | . . . 1 . . . . . 1 . . . Repair 1 | . . . . . . . . . 1 . . . Recycling Unit Hacks 2 | . . . . . . . . . . . . 2 Process 1 | . . . . . . . . . . . . 1 Retrieve Matter 1 | . . . . . . . . . . . . 1 Scanalyzer 4 | . . . . . . . . . . . 4 . Insert Component 2 | . . . . . . . . . . . 2 . Analyze 2 | . . . . . . . . . . . 2 . Garrison Access Hacks 2 | . . . . . . . 1 . 1 . . . Unlock Access 2 | . . . . . . . 1 . 1 . . . Unauthorized Hacks 10 | . 1 . 1 . . . 1 1 2 1 3 . Terminals 9 | . . . 1 . . . 1 1 2 1 3 . Assimilate 3 | . . . . . . . . . . . 3 . Botnet 6 | . . . 1 . . . 1 1 2 1 . . Fabricators . | . . . . . . . . . . . . . Repair Stations . | . . . . . . . . . . . . . Recycling Units 1 | . 1 . . . . . . . . . . . Tunnel 1 | . 1 . . . . . . . . . . . Scanalyzers . | . . . . . . . . . . . . . Garrison Access . | . . . . . . . . . . . . . Data Cores Recovered 1 | . . . 1 . . . . . . . . . Used . | . . . . . . . . . . . . . Hacking Detections 35 | . 4 . 5 . . . 4 1 9 4 8 . Full Trace Events 6 | . 1 . 1 . . . . . 2 1 1 . Feedback Events 1 | . 1 . . . . . . . . . . . Corruption 1 | . 1 . . . . . . . . . . . Feedback Blocked . | . . . . . . . . . . . . . Robot Schematics Acquired 3 | . . . . . . . 1 . . . 2 . Robots Built . | . . . . . . . . . . . . . Authchips . | . . . . . . . . . . . . . Time . | . . . . . . . . . . . . . Total Robot Build Rating . | . . . . . . . . . . . . . Part Schematics Acquired 3 | . . . . . . . . . . . 3 . Parts Built . | . . . . . . . . . . . . . Authchips . | . . . . . . . . . . . . . Time . | . . . . . . . . . . . . . Total Part Build Rating . | . . . . . . . . . . . . . Parts Repaired 1 | . . . . . . . . . 1 . . . Time 38 | . . . . . . . . . 38 . . . Parts Recycled . | . . . . . . . . . . . . . Recycled Matter 34 | . . . . . . . . . . . . 34 Retrieved Matter 34 | . . . . . . . . . . . . 34 Retrieved Components . | . . . . . . . . . . . . . Parts Scanalyzed 2 | . . . . . . . . . . . 2 . Part Schematics Acquired 2 | . . . . . . . . . . . 2 . Parts Damaged . | . . . . . . . . . . . . . Bothacking | -11 -10 -10 -9 -9 -9 -8 -8 -8 -8 -8 -8 -8 ------------ Run | Jun Mat Min Mat Min Exi Min Mat Gar Mat Gar Mat Sto Used RIF Installer . | . . . . . . . . . . . . . Robots Hacked . | . . . . . . . . . . . . . Non-combat . | . . . . . . . . . . . . . Combat . | . . . . . . . . . . . . . Robot Hacks Applied . | . . . . . . . . . . . . . Relay Couplers Released 29 | . . . . . . . . 8 . 21 . . Machine Destruction 29 | . . . . . . . . 8 . 21 . . Fabnet Peak Effective % . | . . . . . . . . . . . . . Robots Rewired . | . . . . . . . . . . . . . Allies Hacked . | . . . . . . . . . . . . . Hacks Repelled . | . . . . . . . . . . . . . Allies | -11 -10 -10 -9 -9 -9 -8 -8 -8 -8 -8 -8 -8 -------- Run | Jun Mat Min Mat Min Exi Min Mat Gar Mat Gar Mat Sto Total Allies 2 | . . . . . . . . . . . 2 . Largest Group 1 | . . . . . . . . . . . 1 . Highest-Rated Group 26 | . . . . . . . . . . . 26 . Highest-Rated Ally 26 | . . . . . . . . . . . 26 . Total Orders . | . . . . . . . . . . . . . Ally Attacks . | . . . . . . . . . . . . . Total Damage . | . . . . . . . . . . . . . Kills . | . . . . . . . . . . . . . Allies Corrupted . | . . . . . . . . . . . . . Allies Melted . | . . . . . . . . . . . . . Intel | -11 -10 -10 -9 -9 -9 -8 -8 -8 -8 -8 -8 -8 ------- Run | Jun Mat Min Mat Min Exi Min Mat Gar Mat Gar Mat Sto Robot Analysis Total 2 | . 1 . 1 . . . . . . . . . Derelict Logs Recovered . | . . . . . . . . . . . . . Drone Launches . | . . . . . . . . . . . . . Drone Recoveries . | . . . . . . . . . . . . . Exploration | -11 -10 -10 -9 -9 -9 -8 -8 -8 -8 -8 -8 -8 ------------- Run | Jun Mat Min Mat Min Exi Min Mat Gar Mat Gar Mat Sto Turns Passed 15474 | 64 778 426 1536 1083 442 623 891 1211 3183 1946 2449 842 Spaces Moved 4962 | 43 355 156 396 449 308 422 298 346 803 557 666 163 Core 19 | 12 . . . . . . . . . . . 7 Treads 3432 | 31 355 156 396 158 5 . 80 346 803 557 518 27 Legs 61 | . . . . . . . . . . . . 61 Wheels 1450 | . . . . 291 303 422 218 . . . 148 68 Hover . | . . . . . . . . . . . . . Flight . | . . . . . . . . . . . . . Fastest Speed 50 | 50 160 240 240 135 135 135 135 320 317 317 175 145 Average Speed 263 | 129 170 240 318 212 138 143 195 320 324 319 311 398 Slowest Speed 1550 | 160 240 240 320 320 320 150 320 320 325 325 480 1550 Overloaded Moves . | . . . . . . . . . . . . . Propulsion Burnouts . | . . . . . . . . . . . . . Robots Hopped . | . . . . . . . . . . . . . Cave-ins Triggered . | . . . . . . . . . . . . . Exploration Rate (%) 52 | 3 48 45 40 92 70 75 28 43 73 82 60 22 Regions Visited 12 Branch Regions 5 Pre-discovered Areas 2 | . 1 . . . 1 . . . . . . . Known Exits Taken 5 | . 1 . 1 . . . 1 . 1 . 1 . Unknown Exits Taken 5 | 1 . 1 . 1 1 1 . . . . . . Scrap Searched 2 | . . 1 . 1 . . . . . . . . Spaces Dug 57 | . . . . 16 . . . 6 1 30 4 . Terrain Destroyed 484 | . 2 3 5 121 . . . 108 32 67 128 18 Melee 1 | . . . . . . . . . 1 . . . Projectile 22 | . 2 3 5 1 . . . . 7 . 4 . AOE 461 | . . . . 120 . . . 108 24 67 124 18 Terrain Rammed . | . . . . . . . . . . . . . Walls Destroyed . | . . . . . . . . . . . . . Machines Disabled . | . . . . . . . . . . . . . Actions | -11 -10 -10 -9 -9 -9 -8 -8 -8 -8 -8 -8 -8 --------- Run | Jun Mat Min Mat Min Exi Min Mat Gar Mat Gar Mat Sto Total 6598 | 49 441 178 555 523 328 431 581 402 1270 664 875 301 Wait 819 | . 10 6 52 20 . 3 236 6 350 12 41 83 Move 4951 | 42 354 155 395 448 307 421 298 345 803 555 665 163 Hop . | . . . . . . . . . . . . . Pick Up 103 | 1 12 1 21 5 5 . 11 3 15 14 7 8 Fast Attach 34 | 6 4 . 3 1 . . 2 . 5 3 7 3 Attach 46 | . 1 . 8 4 5 2 3 2 6 5 7 3 Detach 7 | . . . 1 . 3 . 1 . 1 . 1 . Swap 74 | . 7 1 8 5 2 . 5 8 9 16 11 2 Drop 89 | . 7 . 8 2 6 . 10 3 21 16 12 4 Fire 430 | . 46 15 59 36 . 5 15 23 58 35 122 16 Melee 27 | . . . . . . . . 2 1 6 . 18 Ram . | . . . . . . . . . . . . . Kick . | . . . . . . . . . . . . . Crush 6 | . . . . 2 . . . . 1 . 2 1 Escape Stasis 12 | . . . . . . . . 10 . 2 . . Rewire . | . . . . . . . . . . . . . Trap . | . . . . . . . . . . . . . Miscellaneous . | . . . . . . . . . . . . . Route ------- -11/Junkyard -10/Materials (discovered 2 exits: *Mat / *Min) -10/Mines -9/Materials (discovered 2 exits: *Min x2) -9/Mines (discovered 3 exits: *Mat x2 / *Exi) -9/Exiles -8/Mines (discovered 2 exits: *Mat x2) -8/Materials -8/Garrison (discovered 2 exits: *Mat x2) -8/Materials (discovered 4 exits: [*Fac x2] / *Sto / Gar) -8/Garrison (discovered 3 exits: *Mat x3) -8/Materials (discovered 4 exits: [*Fac x3] / *Sto) -8/Storage History --------- Turn | Location | Event 5 | -11/Junkyard | Discovered new exit (range 16) 65 | -11/Junkyard | Entered Materials 310 | -10/Materials | Build established: Mutant 544 | -10/Materials | Discovered new exit (range 10) 599 | -10/Materials | Destroyed 7 combat bots 785 | -10/Materials | Identified exit to Mines 843 | -10/Materials | Entered Mines 848 | -10/Mines | Joined a pair of Derelicts in attacking an 0b10 outpost 933 | -10/Mines | A weapon hastily lodged in a ceiling crevice suddenly fell to the ground 1250 | -10/Mines | Discovered new exit (range 9) 1269 | -10/Mines | Entered Materials 1269 | -9/Materials | Evolved 2 slots: Utility x2 1665 | -9/Materials | Destroyed 7 combat bots 2085 | -9/Materials | Discovered new exit (range 12) 2633 | -9/Materials | Identified exit to Mines 2805 | -9/Materials | Entered Mines 2806 | -9/Mines | Assembled infested the area 2864 | -9/Mines | Lost 3 parts (1u2w) 2911 | -9/Mines | Discovered new exit (range 7) 3632 | -9/Mines | Core integrity fell below 50% 3635 | -9/Mines | Destroyed YI-UF0 3674 | -9/Mines | Discovered new exit (range 12) 3838 | -9/Mines | Build established: Scavenger-Mutant 3883 | -9/Mines | Deemed a non-threat by the Exiles lab entrance 3883 | -9/Mines | Discovered new exit (range 5) 3888 | -9/Mines | Entered Exiles 3926 | -9/Exiles | Met 8R-AWN 3949 | -9/Exiles | Met EX-HEX 4018 | -9/Exiles | Met EX-DEC 4043 | -9/Exiles | Learned location of Zion (-6) 4085 | -9/Exiles | Met EX-BIN 4104 | -9/Exiles | Aligned with FarCom system 4105 | -9/Exiles | Given EX-Vault access code 4138 | -9/Exiles | Opened EX-Vault 4173 | -9/Exiles | Found Trap Reconfigurator 4208 | -9/Exiles | Build established: Mutant 4222 | -9/Exiles | Warned to stay clear of 0b10 Research branches 4315 | -9/Exiles | Discovered new exit (range 14) 4330 | -9/Exiles | Left Exiles lab with Trap Reconfigurator 4330 | -9/Exiles | Entered Mines 4761 | -8/Mines | Discovered new exit (range 10) 4860 | -8/Mines | Discovered new exit (range 16) 4953 | -8/Mines | Entered Materials 4953 | -8/Materials | Evolved 2 slots: Utility x2 5780 | -8/Materials | Build established: Skirmisher 5844 | -8/Materials | Identified exit to Garrison 5844 | -8/Materials | Entered Garrison 6058 | -8/Garrison | Triggered checkpoint 6174 | -8/Garrison | Build established: Mutant 6216 | -8/Garrison | Triggered checkpoint 6262 | -8/Garrison | Garrison Relay disabled 6474 | -8/Garrison | Triggered checkpoint 6588 | -8/Garrison | Garrison Relay disabled 6650 | -8/Garrison | Phase Generator disabled 6804 | -8/Garrison | Discovered new exit (range 11) 6995 | -8/Garrison | Discovered new exit (range 3) 7055 | -8/Garrison | Entered Materials 7883 | -8/Materials | Discovered new exit (range 5) 7933 | -8/Materials | Build established: Skirmisher 8027 | -8/Materials | Discovered new exit (range 13) 8745 | -8/Materials | Build established: Mutant 9287 | -8/Materials | Build established: Skirmisher 9334 | -8/Materials | Identified exit to Storage 9579 | -8/Materials | Repaired Hvy. Armor Plating 9695 | -8/Materials | Build established: Mutant 9976 | -8/Materials | Discovered new exit (range 15) 10133 | -8/Materials | Build established: Skirmisher 10238 | -8/Materials | Identified exit to Garrison 10238 | -8/Materials | Entered Garrison 10299 | -8/Garrison | Discovered new exit (range 70) 10299 | -8/Garrison | Discovered new exit (range 79) 10299 | -8/Garrison | Discovered new exit (range 58) 10410 | -8/Garrison | Garrison Relay disabled 10559 | -8/Garrison | Garrison Relay disabled 10560 | -8/Garrison | Build established: Mutant 10691 | -8/Garrison | Triggered checkpoint 10815 | -8/Garrison | Garrison Relay disabled 10968 | -8/Garrison | Triggered checkpoint 10971 | -8/Garrison | Triggered checkpoint 10974 | -8/Garrison | Triggered checkpoint 11004 | -8/Garrison | Destroyed 9 combat bots 11510 | -8/Garrison | Triggered checkpoint 11568 | -8/Garrison | Garrison Relay disabled 11798 | -8/Garrison | Attempted to access garrison exit controls, blocked by remote lockdown 11996 | -8/Garrison | Garrison Relay disabled 12018 | -8/Garrison | Triggered checkpoint 12184 | -8/Garrison | Entered Materials 12701 | -8/Materials | Build established: Hacker-Skirmisher 13087 | -8/Materials | Discovered new exit (range 13) 13384 | -8/Materials | First assault squad dispatched 13639 | -8/Materials | Build established: Hacker-Mutant 13642 | -8/Materials | Core integrity fell below 50% 14149 | -8/Materials | Discovered new exit (range 11) 14335 | -8/Materials | Discovered new exit (range 15) 14424 | -8/Materials | Destroyed 7 combat bots 14446 | -8/Materials | Lost 3 parts (1p1n1w) 14633 | -8/Materials | Entered Storage 14754 | -8/Storage | Core integrity fell below 20% 15475 | -8/Storage | Destroyed by Y-45 Defender with Beam Rifle Last Messages --------------- 15343_ R-06 Scavenger system corrupted by crushing effect. 15346_ Destroyed Tractor Beam. 15346_ R-06 Scavenger system corrupted by crushing effect. 15362_ Acquired 4 matter. 15370_ R-06 Scavenger collects Unknown Flight Unit. 15384_ Storage Shell breached. 15391_ Acquired Adv. Targeting Computer. 15398_ Extracted 50 matter. 15463_ Destroyed Heat Sink. 15463_ Y-45 Defender system corrupted by crushing effect. 15466_ Y-45 Defender suffers critical hit (Smash). 15466_ Destroyed Lgt. Treads. 15466_ Y-45 Defender system corrupted by crushing effect. 15467_ Y-45 Defender system terminally corrupted. 15467_ Imp. Ion Engine fried. 15471_ Y-45 Defender suffers critical hit (Smash). 15471_ Destroyed Heat Sink. 15471_ Y-45 Defender system corrupted by crushing effect. 15472_ Tesla Rifle destroyed. 15472_ Com. Wheel destroyed. Map ----- +----------------------------------------------------+ | ?????????????????????????????????????????????????? | | ?????????????????????????????????????????????????? | | ?????????????????????????????????????????????????? | | ?????????????????????????????????##??????????????? | | ?????????????????????????????????# ??????????????? | | ????????????????????????????????? ?????????????? | | ?????????????????????????????????? ?????????????? | | ?????????????????????????????????? ?????????????? | | ??????????????????????????????????# ?????????????? | | ??????????????????????????????????# ?????????????? | | ????????????????????????????????###+######?#+????? | | ????????????????????????????????# #?# ????? | | ????????????????????????????????# #?# """"" | | ????????????????????????????????# #?# "= " | | ????????????????????????????????# ### " """ | | ????????????????????????????????# ""# " "" | | ?????????????????????#??????????# ==! Y"# " [ | | ?????????????????????# ?????????# ==! ""# """" | | ?????????????????????# ?????????# === ### | | ?????????????????????# ?????????# #?# | | ??????????? ######### ##############+#########+## | | ?????????? | | ?????????? | | ?????????? [ | | ?????????????????#######Y##+#########/#########+## | | ???????????????????????#%@ #?##[%!=#?# | | ???????????????????????# """" #?##*=* #?# | | ???????????????????????# "! " #?##" "##?# | | ???????????????????????# "=! #??#* #??# | | ???????????????????????# "!]" #??#* #??# | | ???????????????????????# "!!" #??#* #??# """ "" | | ???????????????????????# """" #??#* *#??# """ "" | | ???????????????????????# #??#####??# """ "" | | ???????????????????????# #?????????######## | | ???????????????????????##########????????????????? | | ?????????????????????????????????????????????????? | | | | | | | | | | | | | | | | | | | | | | | | | | | | | +----------------------------------------------------+ Best States ------------- Heat Dissipation 45 Coolant Potential 80 Energy Generation 15 Energy Capacity 280 Matter Stores 300 Matter Capacity 300 Sight Range 16 Terrain Scan Range 16 Terrain Scan Density 85 Jamming Range 12 Additional Mass Support 9 Armor Coverage 750 Resistance: TH 10 Utility Shielding 66 Evasion (%) 40 Targeting Accuracy 8 Recoil Reduction 2 Offensive Hacking 20 Defensive Hacking 14 Authchip Count 10 Item Schematics ----------------- Trap Extractor | -8/Materials | Hacked Enh. Autogun | -8/Materials | Scanalyzed Imp. Transmission Jammer | -8/Materials | Scanalyzed Robot Schematics ------------------ M-28 Smith | -8/Materials | Hacked M-13 Machinist | -8/Materials | Hacked L-31 Rogue | -8/Materials | Hacked Fabricated ------------ Nothing Alien Tech Used ----------------- None Achievements -------------- None Challenges ------------ None Game ------ Seed ChainGammaBarrier Manual? 0 Play Time 01:21:51 Cumulative 430.1 hours Start 2023.04.01 @ 12:35:13 End 2023.04.01 @ 14:26:13 Sessions 1 Manual Loads 0 Difficulty Rogue Special Mode None Game No. 468 Rogue 459 Adventurer 8 Explorer 1 Win Type - Total 7 Types 4/1/2/0/0/0/0/0/0 Lore% 79 Gallery% 90 Achievement% 71 Wizard Run 0 Options --------- ASCII 0 Keyboard 0 Movement Numpad Keybinds 1 Fullscreen 2 Font 18/Terminus Map View 76x50 Tactical HUD 1 Map Filters NONE Filters NONE Steam 1 RUN: 371cd707-f579-429e-b3e4-317774baf107